fUST/lending_fUST_20241027
["ID","MTS","AMOUNT","RATE_DAILY","PERIOD"]
[340874668,1729980639268,-241.27,0.0003812,10]
[340874669,1729980639278,-201.06,0.0003812,10]
[340874670,1729980639288,-167.55,0.0003812,10]
[340874671,1729980639301,-17063.6003806,0.0003813,5]
[340874672,1729980639312,-42885.26523547,0.0003813,5]
[340874673,1729980639328,-29031.73335669,0.0003813,5]
[340874674,1729980639339,-2206.90380327,0.0003813,5]
[340874683,1729980640698,-6281.23561908,0.0003813,5]
[340874684,1729980640711,-10951.2853301,0.0003813,5]
[340874685,1729980640723,-42572.56398339,0.0003813,5]
[340874686,1729980640733,-483.91375924,0.0003813,14]
[340874687,1729980640743,-167.77973233,0.00038139,15]
[340874688,1729980640752,-177.33786493,0.00038139,15]
[340874689,1729980640762,-1248.99,0.0003814,120]
[340874690,1729980640771,-4765.47954589,0.0003814,5]
[340874705,1729980643631,-1210.29858918,0.0003814,5]
[340874875,1729981831724,-396.639999,0.00034524,2]
[340874877,1729981831734,-384.3732587,0.0003453,2]
[340874879,1729981831748,-511.6064451,0.00034552,2]
[340874881,1729981831757,-169.624184,0.00034835,2]
[340874882,1729981831767,-160.033078,0.00035187,2]
[340874883,1729981831777,-160.033078,0.00035206,2]
[340874884,1729981831786,-160.033078,0.00035226,2]
[340874885,1729981831796,-160.033078,0.00035245,2]
[340874887,1729981831805,-160.033078,0.00035265,2]
[340874889,1729981831815,-160.033078,0.00035285,2]
[340874890,1729981831825,-160.033078,0.00035304,2]
[340874891,1729981831834,-160.033078,0.00035324,2]
[340874892,1729981831844,-160.033078,0.00035343,2]
[340874893,1729981831853,-160.033078,0.00035363,2]
[340874894,1729981831862,-300.0,0.00035475,2]
[340874895,1729981831872,-300.0,0.00035475,2]
[340874896,1729981831882,-5002.89,0.00035476,30]
[340874897,1729981831892,-200.0,0.00035476,14]
[340874898,1729981831906,-294.72012445,0.00035476,3]
[340874899,1729981831915,-2578.42789711,0.000365,35]
[340874908,1729981838019,-2421.57210289,0.000365,35]
[340874909,1729981838033,-169.624184,0.0003665,2]
[340874910,1729981838044,-1333.61339215,0.00036811,7]
[340874911,1729981838056,-5000.0,0.000375,40]
[340874912,1729981838068,-157.193,0.0003766,120]
[340874913,1729981838083,-184.24778218,0.0003785,2]
[340874914,1729981838095,-389.72282832,0.0003785,2]
[340874915,1729981838325,-11362.10235864,0.0003793,14]
[340874916,1729981838340,-576.33849872,0.0003793,14]
[340874917,1729981838349,-464.87934737,0.0003793,14]
[340874918,1729981838359,-53.79443198,0.00038,45]
[340874939,1729981839823,-501.55,0.00038,45]
[340874940,1729981839836,-4444.65556802,0.00038,45]
[340874941,1729981839846,-160.0,0.00038,2]
[340874942,1729981839856,-184.24778218,0.0003804,2]
[340874943,1729981839868,-1000.0,0.0003805,2]
[340874944,1729981839878,-3508.2307093,0.00038069,2]
[340874945,1729981839887,-837.79,0.000381,10]
[340874946,1729981839896,-593.79,0.00038101,3]
[340874947,1729981839906,-593.83,0.00038101,3]
[340874948,1729981839915,-611.80570232,0.0003811,15]
[340874949,1729981839925,-500.0,0.0003811,15]
[340874950,1729981839935,-500.0,0.0003811,15]
[340874951,1729981839948,-500.0,0.0003811,15]
[340874952,1729981839958,-500.0,0.0003811,15]
[340874953,1729981839968,-500.0,0.0003811,15]
[340874954,1729981839978,-517.98807706,0.0003811,15]
[340874955,1729981839988,-500.0,0.0003811,15]
[340874956,1729981839998,-500.0,0.0003811,15]
[340874957,1729981840008,-500.0,0.0003811,15]
[340874958,1729981840018,-457.91241639,0.0003811,15]
[340874959,1729981840028,-500.0,0.0003811,15]
[340874960,1729981840039,-500.0,0.0003811,15]
[340874961,1729981840049,-500.0,0.0003811,15]
[340874962,1729981840059,-500.0,0.0003811,15]
[340874963,1729981840068,-500.0,0.0003811,15]
[340874964,1729981840078,-500.0,0.0003811,15]
[340874965,1729981840087,-500.0,0.0003811,15]
[340874966,1729981840096,-500.0,0.0003811,15]
[340874967,1729981840106,-500.0,0.0003811,15]
[340874968,1729981840116,-10596.37996342,0.00038111,5]
[340874969,1729981840128,-1174.61692453,0.00038111,5]
[340874980,1729981842795,-7675.30366275,0.00038111,5]
[340874981,1729981842806,-127232.537962,0.00038111,5]
[340874982,1729981842817,-199.37264949,0.00038129,15]
[340874983,1729981842829,-263.63608849,0.00038129,15]
[340874984,1729981842840,-307.10507906,0.00038129,15]
[340874985,1729981842851,-650.96880241,0.00038129,15]
[340874986,1729981842862,-1196.95,0.0003813,120]
[340874987,1729981842874,-3251.45071629,0.0003813,5]
[340874988,1729981842888,-31819.20167374,0.0003813,5]
[340875077,1729983031959,-24900.0,0.00032317,2]
[340875078,1729983031972,-300.0,0.00033854,2]
[340875079,1729983031982,-400.0,0.00033854,2]
[340875080,1729983031991,-8520.5799213,0.00033855,2]
[340875081,1729983032001,-200.0,0.00035486,14]
[340875082,1729983032011,-548.92469226,0.00035645,14]
[340875083,1729983032023,-560.0,0.00036342,2]
[340875084,1729983032033,-1102.9660674,0.00036385,2]
[340875085,1729983032042,-306.0,0.00036849,2]
[340875086,1729983032053,-1102.9660674,0.00036885,2]
[340875087,1729983032064,-1102.9660674,0.00037385,2]
[340875088,1729983032075,-306.0,0.00037534,2]
[340875089,1729983032087,-341.00747478,0.00037839,2]
[340875090,1729983032097,-174.70370022,0.00037839,2]
[340875091,1729983032107,-1102.9660674,0.00037885,2]
[340875092,1729983032118,-174.70370018,0.00037887,2]
[340875093,1729983032127,-174.70370018,0.00037935,2]
[340875094,1729983032138,-1333.62673121,0.00037939,7]
[340875095,1729983032148,-1333.62673121,0.00037939,7]
[340875096,1729983032158,-174.70370018,0.00037982,2]
[340875097,1729983032169,-163.55817668,0.00038,120]
[340875098,1729983032179,-6666.09372138,0.00038002,2]
[340875099,1729983032190,-174.70370018,0.0003803,2]
[340875100,1729983032217,-1000.0,0.0003804,2]
[340875101,1729983032227,-731.2,0.000381,3]
[340875102,1729983032237,-500.0,0.00038109,15]
[340875103,1729983032247,-390.88756412,0.00038109,15]
[340875104,1729983032258,-161.99026849,0.00038109,15]
[340875105,1729983032273,-9383.17642803,0.0003811,5]
[340875106,1729983032288,-11749.19517147,0.0003811,5]
[340875107,1729983032300,-65364.34561865,0.0003811,5]
[340875108,1729983032313,-2064.5055936,0.0003811,5]
[340875109,1729983032327,-466.0,0.0003811,5]
[340875126,1729983038146,-7055.85608215,0.0003811,5]
[340875127,1729983038193,-333.04240939,0.0003811,5]
[340875128,1729983038216,-14987.48105878,0.0003811,5]
[340875212,1729983040140,-35294.36080943,0.0003811,5]
[340875214,1729983040150,-999.0,0.00038119,120]
[340875216,1729983040159,-455.67816169,0.00038119,15]
[340875218,1729983040168,-214.97355534,0.00038119,15]
[340875220,1729983040177,-184.54526195,0.00038119,15]
[340875222,1729983040187,-42264.7431991,0.0003812,5]
[340875224,1729983040196,-119831.7619065,0.0003812,5]
[340875664,1729984235742,-160.0,0.00024,2]
[340875665,1729984235753,-1233.5152222,0.00028558,2]
[340875666,1729984235764,-300.0,0.00029954,2]
[340875667,1729984235774,-300.0,0.00029954,2]
[340875668,1729984235785,-22906.4847778,0.00029955,2]
[340875669,1729984235797,-1973.5152222,0.00029955,2]
[340875670,1729984235808,-214.181223,0.00030168,2]
[340875671,1729984235819,-214.181223,0.00030251,2]
[340875672,1729984235837,-214.181223,0.00030334,2]
[340875673,1729984235849,-214.181223,0.00030416,2]
[340875674,1729984235860,-214.181223,0.00030499,2]
[340875675,1729984235872,-214.181223,0.00030582,2]
[340875676,1729984235884,-214.181223,0.00030665,2]
[340875677,1729984235895,-214.181223,0.00030747,2]
[340875678,1729984235906,-214.181223,0.0003083,2]
[340875679,1729984235916,-214.181223,0.00030913,2]
[340875680,1729984235925,-214.181223,0.00030996,2]
[340875681,1729984235934,-214.181223,0.00031078,2]
[340875682,1729984235944,-214.181223,0.00031161,2]
[340875683,1729984235954,-214.181223,0.00031244,2]
[340875684,1729984235964,-462.05535772,0.00031327,7]
[340875685,1729984235976,-214.181223,0.00031327,2]
[340875686,1729984235987,-214.181223,0.00031409,2]
[340875687,1729984235998,-214.181223,0.00031492,2]
[340875688,1729984236009,-214.181223,0.00031575,2]
[340875689,1729984236019,-214.181223,0.00031658,2]
[340875690,1729984236029,-214.181223,0.0003174,2]
[340875691,1729984236039,-360.0,0.00032285,2]
[340875692,1729984236051,-300.0,0.00032949,2]
[340875693,1729984236061,-200.0,0.0003553,14]
[340875694,1729984236072,-338.20715731,0.0003553,2]
[340875695,1729984236083,-500.0,0.00036385,2]
[340875696,1729984236095,-151.62910681,0.00036433,17]
[340875697,1729984236105,-500.0,0.00036885,2]
[340875698,1729984236115,-1333.64007055,0.00037171,7]
[340875699,1729984236125,-500.0,0.00037385,2]
[340875700,1729984236139,-890.751397,0.00037885,2]
[340875701,1729984236150,-1000.0,0.0003804,2]
[340875702,1729984236160,-3069.70187064,0.00038069,2]
[340875703,1729984236170,-1105.45,0.00038119,120]
[340875704,1729984236181,-500.0,0.00038119,15]
[340875705,1729984236192,-500.0,0.00038119,15]
[340875706,1729984236203,-500.0,0.00038119,15]
[340875707,1729984236213,-500.0,0.00038119,15]
[340875708,1729984236224,-500.0,0.00038119,15]
[340875709,1729984236234,-500.0,0.00038119,15]
[340875710,1729984236245,-500.0,0.00038119,15]
[340875711,1729984236254,-500.0,0.00038119,15]
[340875712,1729984236267,-500.0,0.00038119,15]
[340875713,1729984236280,-500.0,0.00038119,15]
[340875714,1729984236290,-519.71415494,0.00038119,15]
[340875715,1729984236301,-500.0,0.00038119,15]
[340875716,1729984236314,-500.0,0.00038119,15]
[340875717,1729984236323,-500.0,0.00038119,15]
[340875718,1729984236334,-500.0,0.00038119,15]
[340875719,1729984236346,-199.54924251,0.00038119,15]
[340875720,1729984236356,-500.0,0.00038119,15]
[340875721,1729984236366,-500.0,0.00038119,15]
[340875722,1729984236378,-500.0,0.00038119,15]
[340875723,1729984236390,-20269.6173139,0.0003812,5]
[340875724,1729984236399,-19888.29251336,0.0003812,5]
[340875831,1729984240177,-655.62,0.0003811,3]
[340875833,1729984240187,-67344.38,0.0003812,5]
[340875842,1729984240279,-36302.64538664,0.0003812,5]
[340875844,1729984240290,-151.0,0.00038121,14]
[340875846,1729984240302,-151.0,0.00038121,14]
[340875848,1729984240311,-151.0,0.00038121,14]
[340875849,1729984240323,-151.0,0.00038121,14]
[340875850,1729984240334,-151.0,0.00038121,14]
[340875851,1729984240343,-151.888586,0.00038121,14]
[340875852,1729984240354,-151.0,0.00038121,14]
[340875853,1729984240365,-151.0,0.00038121,14]
[340875854,1729984240376,-151.0,0.00038121,14]
[340875855,1729984240388,-500.0,0.0003813,15]
[340875856,1729984240400,-208.83807499,0.0003813,15]
[340875857,1729984240412,-249.30741407,0.0003813,15]
[340875858,1729984240422,-266.75105629,0.0003813,15]
[340875859,1729984240433,-174.51518984,0.0003813,15]
[340875860,1729984240442,-153.576783,0.0003813,14]
[340875861,1729984240453,-151.0,0.0003813,14]
[340875862,1729984240464,-151.0,0.0003813,14]
[340875863,1729984240475,-151.871334,0.0003813,14]
[340875864,1729984240486,-151.0,0.0003813,14]
[340875865,1729984240496,-151.0,0.0003813,14]
[340875866,1729984240505,-151.0,0.0003813,14]
[340875867,1729984240515,-151.0,0.0003813,14]
[340875868,1729984240524,-151.0,0.0003813,14]
[340875869,1729984240534,-151.0,0.0003813,14]
[340875870,1729984240543,-151.0,0.0003813,14]
[340875871,1729984240552,-151.0,0.0003813,14]
[340875872,1729984240562,-151.0,0.0003813,14]
[340875873,1729984240571,-151.0,0.0003813,14]
[340875874,1729984240581,-151.0,0.0003813,14]
[340875875,1729984240591,-151.0,0.0003813,14]
[340875876,1729984240601,-151.0,0.0003813,14]
[340875877,1729984240610,-151.0,0.0003813,14]
[340875878,1729984240619,-151.0,0.0003813,14]
[340875879,1729984240629,-317.071739,0.0003813,14]
[340875880,1729984240638,-151.0,0.0003813,14]
[340875881,1729984240647,-317.071739,0.0003813,14]
[340875882,1729984240657,-151.0,0.0003813,14]
[340875883,1729984240666,-20269.6173139,0.00038131,5]
[340875884,1729984240676,-43215.06477729,0.00038131,5]
[340875894,1729984243192,-1534.85093532,0.00038069,2]
[340875895,1729984243203,-518.88906468,0.00038111,10]
[340875928,1729984246141,-170.0,0.00023,2]
[340875930,1729984246152,-28.20093532,0.00038111,10]
[340875932,1729984246163,-9788.57162268,0.00038131,5]
[340875934,1729984246184,-1422.02287422,0.00038131,5]
[340875936,1729984246196,-1544.44300055,0.00038131,5]
[340876003,1729984662325,170.006154,0.00013973,2]
[340876004,1729984939815,3000.0,0.00035535,38]
[340876005,1729985007202,2000.0,0.00035535,36]
[340876031,1729985301731,170.006154,0.00013973,2]
[340876081,1729985432268,-165.0,0.00025,2]
[340876083,1729985432278,-307.0,0.00025,2]
[340876085,1729985432288,-307.0,0.00025646,2]
[340876087,1729985432297,-591.25728323,0.00025852,2]
[340876158,1729985438495,-953.84113845,0.00025852,2]
[340876169,1729985440320,-1740.00029856,0.00025852,2]
[340876170,1729985440331,-307.0,0.00026641,2]
[340876171,1729985440342,-312.0,0.00027973,2]
[340876172,1729985440354,-170.006154,0.00029349,2]
[340876173,1729985440365,-307.0,0.00029838,2]
[340876174,1729985440377,-400.0,0.00030395,2]
[340876175,1729985440392,-400.0,0.00030395,2]
[340876176,1729985440404,-167.245031,0.00030396,2]
[340876177,1729985440414,-174.114978,0.00030396,2]
[340876178,1729985440427,-179.677977,0.00030396,2]
[340876179,1729985440438,-307.0,0.00031703,2]
[340876180,1729985440449,-179.677977,0.00031916,2]
[340876181,1729985440462,-307.0,0.00031969,2]
[340876182,1729985440471,-166.666666,0.00032262,2]
[340876183,1729985440482,-250.0,0.00032449,2]
[340876184,1729985440493,-660.0,0.000325,2]
[340876185,1729985440503,-250.0,0.00032538,2]
[340876186,1729985440513,-78.48474434,0.00032549,2]
[340876270,1729986353891,170.006154,0.00013973,2]
[340876291,1729986632650,-166.666666,0.00031789,2]
[340876293,1729986632660,-400.0,0.0003211,2]
[340876294,1729986632670,-7407.46286459,0.00032297,2]
[340876297,1729986632680,-225.0,0.00032463,2]
[340876298,1729986632691,-225.0,0.00032552,2]
[340876300,1729986632702,-225.0,0.00032641,2]
[340876302,1729986632714,-166.666666,0.00032656,2]
[340876304,1729986632726,-225.0,0.0003273,2]
[340876306,1729986632736,-225.0,0.00032819,2]
[340876308,1729986632746,-225.0,0.00032908,2]
[340876310,1729986632756,-225.0,0.00032997,2]
[340876311,1729986632767,-225.0,0.00033086,2]
[340876312,1729986632777,-225.0,0.00033175,2]
[340876313,1729986632787,-225.0,0.00033264,2]
[340876314,1729986632796,-225.0,0.00033353,2]
[340876315,1729986632805,-748.645581,0.00033428,2]
[340876316,1729986632815,-225.0,0.00033442,2]
[340876317,1729986632825,-14829.1637608,0.00033464,2]
[340876318,1729986632847,-166.666666,0.00033523,2]
[340876319,1729986632858,-225.0,0.00033531,2]
[340876320,1729986632868,-307.0,0.00033567,2]
[340876321,1729986632880,-140.72779561,0.0003362,2]
[340876339,1729986638737,-84.27220439,0.0003362,2]
[340876340,1729986638746,-225.0,0.00033709,2]
[340876341,1729986638756,-225.0,0.00033798,2]
[340876342,1729986638765,-153.996,0.000338,36]
[340876343,1729986638778,-225.0,0.00033887,2]
[340876344,1729986638788,-225.0,0.00033976,2]
[340876345,1729986638797,-225.0,0.00034065,2]
[340876346,1729986638807,-157.633374,0.00034108,2]
[340876347,1729986638816,-225.0,0.00034154,2]
[340876348,1729986638827,-166.666666,0.00034389,2]
[340876349,1729986638837,-158.90604318,0.00034413,2]
[340876350,1729986638846,-170.006154,0.00034475,2]
[340876351,1729986638856,-1333.64007055,0.00034655,7]
[340876352,1729986638865,-603.90989189,0.00034655,7]
[340876353,1729986638874,-166.666666,0.00035256,2]
[340876354,1729986638884,-1520.99172155,0.00035363,32]
[340876355,1729986638893,-1012.84180072,0.000355,30]
[340876356,1729986638904,-200.0,0.0003554,14]
[340876357,1729986638914,-166.666666,0.00036123,2]
[340876358,1729986638923,-940.026105,0.00036195,2]
[340876359,1729986638933,-940.026105,0.00036695,2]
[340876360,1729986638942,-1333.64007055,0.00036735,7]
[340876361,1729986638951,-940.026105,0.00037195,2]
[340876362,1729986638962,-153.0,0.00037534,2]
[340876363,1729986638973,-153.0,0.00037534,2]
[340876364,1729986638982,-153.0,0.00037534,2]
[340876365,1729986638992,-153.7550872,0.00037534,2]
[340876366,1729986639001,-940.026105,0.00037695,2]
[340876367,1729986639010,-153.0,0.00037808,2]
[340876368,1729986639020,-153.0,0.00037808,2]
[340876369,1729986639029,-153.0,0.00037808,2]
[340876370,1729986639038,-153.0,0.00037808,2]
[340876371,1729986639047,-767.42546766,0.00038068,2]
[340876372,1729986639056,-455.9,0.0003811,10]
[340876373,1729986639065,-379.92,0.0003811,10]
[340876374,1729986639074,-316.6,0.0003811,10]
[340876375,1729986639083,-536.72573941,0.00038119,15]
[340876376,1729986639093,-502.19046166,0.00038119,15]
[340876377,1729986639103,-522.17213806,0.00038119,15]
[340876378,1729986639113,-500.0,0.00038119,15]
[340876379,1729986639123,-500.0,0.00038119,15]
[340876380,1729986639133,-500.0,0.00038119,15]
[340876381,1729986639142,-500.0,0.00038119,15]
[340876382,1729986639152,-500.0,0.00038119,15]
[340876383,1729986639161,-500.0,0.00038119,15]
[340876384,1729986639171,-500.0,0.00038119,15]
[340876385,1729986639181,-500.0,0.00038119,15]
[340876386,1729986639191,-500.0,0.00038119,15]
[340876387,1729986639203,-500.0,0.00038119,15]
[340876388,1729986639213,-500.0,0.00038119,15]
[340876389,1729986639223,-500.0,0.00038119,15]
[340876390,1729986639232,-500.0,0.00038119,15]
[340876391,1729986639242,-500.0,0.00038119,15]
[340876392,1729986639252,-500.0,0.00038119,15]
[340876393,1729986639262,-500.0,0.00038119,15]
[340876394,1729986639271,-500.0,0.00038119,15]
[340876395,1729986639281,-379.4008874,0.00038119,15]
[340876396,1729986639291,-970.7443739,0.0003812,5]
[340876397,1729986639300,-6796.44344647,0.0003812,5]
[340876519,1729987375327,170.006154,0.00013973,2]
[340876581,1729987832659,-166.666666,0.00033969,2]
[340876582,1729987832670,-179.6919726,0.00035545,14]
[340876583,1729987832684,-20.3080274,0.00035545,14]
[340876584,1729987832694,-320.3569726,0.00036195,2]
[340876630,1729987838823,-179.6430274,0.00036195,2]
[340876631,1729987838835,-500.0,0.00036695,2]
[340876632,1729987838846,-500.0,0.00037195,2]
[340876633,1729987838857,-254.73,0.0003749,3]
[340876634,1729987838868,-764.23,0.0003749,3]
[340876636,1729987838881,-400.0,0.00037498,2]
[340876638,1729987838895,-375.70801758,0.00037499,15]
[340876639,1729987838905,-500.0,0.00037499,15]
[340876640,1729987838917,-486.6000986,0.00037499,15]
[340876641,1729987838928,-4631.75487966,0.000375,30]
[340876647,1729987840710,-65375.86648029,0.000375,30]
[340876896,1729987977319,2000.0,0.00035545,30]
[340876898,1729988100610,170.006154,0.00013973,2]
[340876899,1729988187970,1000.0,0.00035545,30]
[340876900,1729988216451,1000.0,0.00035545,30]
[340876901,1729988229247,1000.0,0.00035545,30]
[340876902,1729988241059,1000.0,0.00035545,30]
[340876903,1729988453470,2000.0,0.00035545,30]
[340876913,1729988902041,3547.75760277,0.000125,2]
[340876977,1729989031938,-205.53605824,0.00025852,2]
[340876979,1729989031947,-926.21265456,0.0003466,7]
[340876980,1729989031957,-200.0,0.00035545,14]
[340876981,1729989031966,-500.0,0.00036195,2]
[340876982,1729989031975,-500.0,0.00036695,2]
[340876983,1729989031984,-400.0,0.00036723,2]
[340876984,1729989031994,-2352.32274295,0.00036724,2]
[340877079,1729989045818,-776.55286853,0.00036724,2]
[340877081,1729989329581,170.006154,0.00013973,2]
[340877133,1729990238293,-484.7805492,0.00035378,7]
[340877134,1729990238303,-200.0,0.00035556,14]
[340877135,1729990238313,-500.0,0.00036195,2]
[340877136,1729990238324,-300.0,0.00036491,2]
[340877137,1729990238335,-400.0,0.00036491,2]
[340877138,1729990238346,-8082.62982207,0.00036492,2]
[340877140,1729990238357,-500.0,0.000365,120]
[340877142,1729990238372,-500.0,0.000366,120]
[340877144,1729990238381,-167.102,0.0003664,120]
[340877146,1729990238391,-500.0,0.00036695,2]
[340877147,1729990238402,-2000.0,0.000367,2]
[340877148,1729990238412,-204.0,0.00036724,120]
[340877149,1729990238422,-527.0,0.00036924,2]
[340877150,1729990238433,-2396.0,0.00036924,2]
[340877151,1729990238444,-1151.0,0.00036924,2]
[340877152,1729990238454,-3000.0,0.00037,28]
[340877153,1729990238465,-500.0,0.00037,120]
[340877154,1729990238476,-786.74573,0.00037195,2]
[340877155,1729990238488,-218.78260052,0.00037399,2]
[340877156,1729990238501,-218.78260052,0.000374,2]
[340877157,1729990238511,-500.0,0.00037473,5]
[340877158,1729990238523,-153.996,0.00037473,48]
[340877159,1729990238533,-500.0,0.00037473,2]
[340877160,1729990238544,-500.0,0.00037473,2]
[340877161,1729990238555,-500.0,0.00037473,5]
[340877162,1729990238566,-500.0,0.00037473,5]
[340877163,1729990238576,-162.65,0.0003749,3]
[340877164,1729990238588,-487.96,0.0003749,3]
[340877165,1729990238599,-152.68,0.0003749,10]
[340877166,1729990238610,-238.39,0.0003749,10]
[340877167,1729990238621,-160.0,0.00037499,3]
[340877168,1729990238630,-160.0,0.00037499,5]
[340877169,1729990238640,-262.99561231,0.00037499,15]
[340877170,1729990238652,-151.0,0.00037499,14]
[340877171,1729990238662,-151.0,0.00037499,14]
[340877172,1729990238672,-151.0,0.00037499,14]
[340877173,1729990238683,-152.495421,0.00037499,2]
[340877174,1729990238693,-500.0,0.00037499,2]
[340877175,1729990238704,-151.0,0.00037499,14]
[340877176,1729990238715,-285.364565,0.00037499,14]
[340877177,1729990238725,-285.364565,0.00037499,14]
[340877178,1729990238734,-151.0,0.00037499,14]
[340877179,1729990238745,-94160.39202488,0.000375,30]
[340877180,1729990238851,-1950.0,0.000375,30]
[340877181,1729990238863,-1908.21871739,0.000375,30]
[340877182,1729990238875,-545.05576626,0.000375,30]
[340877241,1729990352638,170.006154,0.00013973,2]
[340877272,1729991432182,-160.728946,0.00033833,2]
[340877274,1729991432192,-160.728946,0.00034085,2]
[340877277,1729991432201,-160.728946,0.00034337,2]
[340877280,1729991432211,-300.0,0.00034495,2]
[340877282,1729991432220,-400.0,0.00034495,2]
[340877283,1729991432229,-523.64514785,0.00034496,2]
[340877286,1729991432241,-7537.89872115,0.00034496,2]
[340877288,1729991432250,-1133.4845094,0.00034516,2]
[340877290,1729991432260,-160.728946,0.00034589,2]
[340877292,1729991432269,-160.728946,0.00034841,2]
[340877294,1729991432279,-160.728946,0.00035093,2]
[340877296,1729991432288,-160.728946,0.00035344,2]
[340877298,1729991432297,-687.03300496,0.00035556,30]
[340877300,1729991432309,-5312.86699504,0.00035556,30]
[340877302,1729991432318,-160.728946,0.00035596,2]
[340877304,1729991432327,-200.0,0.00035604,14]
[340877306,1729991432338,-545.619625,0.00036195,2]
[340877308,1729991432347,-731.09183302,0.00036626,14]
[340877310,1729991432357,-17963.73055869,0.00036626,4]
[340877312,1729991432367,-168.43535171,0.00036886,2]
[340877314,1729991432376,-168.43535171,0.00036918,2]
[340877316,1729991432385,-168.43535171,0.00036951,2]
[340877318,1729991432395,-168.43535171,0.00036983,2]
[340877320,1729991432404,-306.0,0.00036986,2]
[340877323,1729991432414,-34956.96525265,0.00037,2]
[340877325,1729991432423,-500.0,0.00037001,2]
[340877327,1729991432432,-527.0,0.00037002,2]
[340877329,1729991432441,-2396.0,0.00037002,2]
[340877331,1729991432450,-1151.0,0.00037002,2]
[340877333,1729991432460,-560.0,0.00037006,2]
[340877335,1729991432469,-168.43535171,0.00037015,2]
[340877337,1729991432479,-325.3,0.00037105,3]
[340877339,1729991432488,-198.66,0.00037105,10]
[340877341,1729991432497,-165.55,0.00037105,10]
[340877343,1729991432513,-228.13513581,0.00037114,15]
[340877345,1729991432522,-500.0,0.00037114,15]
[340877347,1729991432532,-500.0,0.00037114,15]
[340877349,1729991432542,-441.41772194,0.00037114,15]
[340877351,1729991432553,-500.0,0.00037114,15]
[340877353,1729991432563,-500.0,0.00037114,15]
[340877355,1729991432572,-500.0,0.00037114,15]
[340877358,1729991432583,-500.0,0.00037114,15]
[340877360,1729991432593,-500.0,0.00037114,15]
[340877362,1729991432602,-500.0,0.00037114,15]
[340877364,1729991432612,-500.0,0.00037114,15]
[340877366,1729991432621,-500.0,0.00037114,15]
[340877368,1729991432630,-500.0,0.00037114,15]
[340877370,1729991432639,-500.0,0.00037114,15]
[340877372,1729991432648,-500.0,0.00037114,15]
[340877374,1729991432658,-230.67880176,0.00037114,15]
[340877376,1729991432667,-500.0,0.00037114,15]
[340877378,1729991432677,-500.0,0.00037114,15]
[340877380,1729991432686,-500.0,0.00037114,15]
[340877382,1729991432696,-500.0,0.00037114,15]
[340877384,1729991432705,-500.0,0.00037114,15]
[340877386,1729991432715,-250.0,0.00037114,15]
[340877388,1729991432724,-500.0,0.00037114,15]
[340877390,1729991432733,-500.0,0.00037114,15]
[340877392,1729991432743,-500.0,0.00037114,15]
[340877394,1729991432752,-500.0,0.00037114,15]
[340877397,1729991432764,-500.0,0.00037114,15]
[340877399,1729991432773,-500.0,0.00037114,15]
[340877401,1729991432783,-456.40212892,0.00037114,15]
[340877403,1729991432794,-500.0,0.00037114,15]
[340877405,1729991432803,-500.0,0.00037114,15]
[340877407,1729991432813,-500.0,0.00037114,15]
[340877409,1729991432822,-500.0,0.00037114,15]
[340877411,1729991432832,-500.0,0.00037114,15]
[340877413,1729991432842,-500.0,0.00037114,15]
[340877415,1729991432852,-500.0,0.00037114,15]
[340877417,1729991432862,-500.0,0.00037114,15]